{"text_format":"1","workbook":"xlsx","n_sheets":3,"sheets":["Instrukcja","Dane finansowe","Wyniki"],"not_rendered":{"charts":0,"images":0,"macros":1,"external_links":0,"defined_names":1,"comments":1,"pivot_tables":0},"unopened":[],"bounds":{"document_bytes":16777216,"sheet_cells":100000,"rows_first":2000,"rows_last":500,"rows_between":2000,"halvings":0,"cell_chars":16384,"cell_head_chars":4096},"cells_cut":0,"cells_raw":0,"read":"whole","date_system":"1900"}

{"sheet":"Instrukcja","index":0,"n_rows":39,"n_cols":2,"rows_kept":39,"cut":false,"hidden":false,"merged":[[26,1,37,15],[38,1,38,15],[0,1,25,15]]}
[null,"\n1. Informacja dotycząca sposobu wypełniania pól liczbowych.\n    Arkusz rozróżnia wartości zerowe i puste pola. W przypadku braku danych finansowych za dany okres należy poszczególne pozycje pozostawić puste lub\n    wprowadzone już dane usunąć (np.: klawiszem ,,DEL” lub wbudowanym przyciskiem ,,Wyczyść dane finansowe”).\n    W przypadku, gdy wartość pozycji jest równa zero (,,0”) należy wpisać tę wartość w odpowiednią pozycję. \n\n2. Informacja uzupełniająca dotycząca sposobu prezentacji danych w arkuszu ,,Dane finansowe”, w tabelach:\n   ,,Rachunek zysków i strat”,\n   ,,Bilans — Aktywa”,\n   ,,Bilans — Pasywa”.\n   \"Rachunek przepływów środków pieniężnych\"\nWartości poszczególnych pozycji w wyżej wymienionych tabelach należy wpisywać zgodnie z danymi zawartymi w sprawozdaniach finansowych. \n\n\n3. Informacja uzupełniająca dotycząca sposobu prezentacji danych w arkuszu ,,Dane finansowe” w tabeli ,,Rachunek przepływów pieniężnych”. \n    Dane z \"Rachunku przepływów pieniężnych\" mają wpływ na rating dlatego też zaleca się, aby tabelę wypełniły również podmioty, które zgodnie z ustawą\n    o rachunkowości nie mają obowiązku sporządzania tego sprawozdania.\n\nPozycja A. Przepływy pieniężne netto z działalności operacyjnej.\n    Dodatnie przepływy (wpływy pieniężne) należy wpisywać ze znakiem ,,+“. \n    Ujemne przepływy (wydatki pieniężne) należy wpisywać ze znakiem ,,-“. \nPozycja B. Przepływy pieniężne netto z działalności inwestycyjnej.\n    Dodatnie przepływy (wpływy pieniężne) należy wpisywać ze znakiem ,,+“.\n    Ujemne przepływy (wydatki pieniężne) należy wpisywać ze znakiem ,,-“.\nPozycja C. Przepływy pieniężne netto z działalności finansowej.\n    Wpływy z działalności finansowej (pozycja C.1.) należy wpisywać ze znakiem ,,+“.\n    Wydatki z działalności finansowej (pozycje C.2.1 – C.2.3.) należy wpisywać ze znakiem ,,+“. \n    Wartość w pozycji C.2. stanowi wynik sumowania poszczególnych wydatków finansowych wymienionych w pozycjach od C.2. 1. do C.2.3. \n\nWartości poszczególnych pozycji w wyżej wymienionych tabelach należy wpisywać zgodnie z danymi zawartymi w sprawozdaniach finansowych. \n"]
[]
[]
[]
[]
[]
[]
[]
[]
[]
[]
[]
[]
[]
[]
[]
[]
[]
[]
[]
[]
[]
[]
[]
[]
[]
[null,"UWAGA:\n\nBeneficjentom realizującym projekty w formule „project finance”*), przyznawany jest rating na poziomie „Zły / trudności finansowe (CCC i poniżej)”. Ocena bieżącej sytuacji finansowej nie jest w tym wypadku przeprowadzana. \nRating na poziomie „Zły / trudności finansowe (CCC i poniżej)” przyznawany jest również Beneficjentom posiadającym historię kredytową, jednak prowadzącym działalność w rozmiarze znacznie niższym niż rozmiar działalności, która będzie prowadzona w wyniku realizacji projektu. Dotyczy to Beneficjentów którzy w okresie objętym analizą uzyskują roczną nadwyżkę finansową rozumianą jako suma zysku netto i amortyzacji niższą niż planowana, uśredniona roczna rata kapitałowa pożyczki z NFOŚiGW o przyznanie której występuje Beneficjent.\n\nRating uzyskany w trakcie oceny bieżącej sytuacji finansowej jest podstawą do ustalenia oprocentowania przy którym pożyczka nie będzie stanowić pomocy publicznej.\n"]
[]
[]
[]
[]
[]
[]
[]
[]
[]
[]
[]
[null,"*) Za przedsięwzięcie realizowane w formule „project finance” uznaje się przedsięwzięcie realizowane przez:\n     - podmiot utworzony specjalnie w celu realizacji przedsięwzięcia, który nie rozpoczął jeszcze prowadzenia działalności operacyjnej,\n     - podmiot prowadzący obecnie działalność gospodarczą, ale w innej dziedzinie niż charakter przedsięwzięcia zgłoszonego we wniosku o dofinansowanie (np.\n     - podmiot prowadzący działalność szkoleniową zamierza budować farmę wiatrową) - szczególnie w przypadku kiedy skala prowadzonej dotychczasowej \n       działalności podmiotu nie gwarantuje ew. zwrotu środków w przypadku niepowodzenia realizacji przedsięwzięcia,\n     - podmiot prowadzący działalność gospodarczą krócej niż rok.\n"]

{"sheet":"Dane finansowe","index":1,"n_rows":71,"n_cols":20,"rows_kept":71,"cut":false,"hidden":false,"merged":[[15,2,15,5],[3,2,3,3],[7,2,7,3],[8,2,8,3],[5,2,5,3],[7,11,7,14],[8,11,8,14],[2,2,2,3],[1,2,1,8],[2,4,2,8],[3,4,3,8],[7,8,7,9],[8,8,8,9]]}
[]
[null,null,"Dane Beneficjenta"]
[null,null,"Nazwa:"]
[null,null,"Adres:"]
[]
[null,null,"Rok złożenia wniosku"]
[]
[null,null,"Wynik oceny",null,"Kategoria","Rating","Propozycja\noprocentowania",null,"Wysokość stopy bazowej",null,null,"Rating",null,null,null,"AAA-A","BBB","BB","B","CCC"]
[null,null,{"$f":"IF(E9=\"\",\"\",\"Rating bieżącej sytuacji finansowej\n(podsumowanie wyników oceny)\")","v":"Rating bieżącej sytuacji finansowej\n(podsumowanie wyników oceny)"},null,{"$f":"IF(Wyniki!I41=0,\"\",Wyniki!H42)","v":"Zła/trudności finansowe"},{"$f":"IF(Wyniki!I41>75,\"AAA-A\",IF(Wyniki!I41>59,\"BBB\",IF(Wyniki!I41>49,\"BB\",IF(Wyniki!I41>32,\"B\",IF(Wyniki!I41=0,\"\",\"CCC\")))))","v":"CCC"},{"$f":"IF(F9=\"\",\"\",IF('Dane finansowe'!F9=\"AAA-A\",'Dane finansowe'!I9+('Dane finansowe'!P9/10000)*100%,IF('Dane finansowe'!F9=\"BBB\",'Dane finansowe'!I9+('Dane finansowe'!Q9/10000)*100%,IF('Dane finansowe'!F9=\"BB\",'Dane finansowe'!I9+('Dane finansowe'!R9/10000)*100%,IF('Dane finansowe'!F9=\"B\",'Dane finansowe'!I9+('Dane finansowe'!S9/10000)*100%,'Dane finansowe'!I9+('Dane finansowe'!T9/10000)*100%)))))","v":5.8400000000000001E-2},null,1.84E-2,null,null,"Marża w punktach bazowych*)",null,null,null,60,75,100,220,400]
[null,null,null,null,null,null,null,null,null,null,null,"*) Komunikat Komisji w sprawie zmiany metody ustalania stóp referencyjnych i dyskontowych (2008/C 14/02)"]
[]
[]
[]
[]
[null,null,"Sprawozdania finansowe",null,null,null,null,"PLN"]
[null,null,"Proszę wybrać jednostkę sprawozdań finansowych (tys. PLN/PLN)",null,null,null,null,"tys. PLN"]
[]
[null,null,"Lp.","Rachunek zysków i strat","Jedn. / Lata",{"$f":"IF($H$18=\"\",\"\",G38-1)","v":""},{"$f":"IF($H$18=\"\",\"\",H18-1)","v":""},{"$f":"IF($E$6=\"\",\"\",$E$6-1)","v":""}]
[null,null,"A.","Przychody netto ze sprzedaży i zrównane z nimi",{"$f":"IF($G$16=\"\",\"\",$G$16)","v":""}]
[null,null,"B.","Koszty działalności operacyjnej, w tym:",""]
[null,null,null," - amortyzacja",""]
[null,null,"C.","Zysk/strata ze sprzedaży (A-B)",""]
[null,null,"F.","Zysk/strata z działalności operacyjnej EBIT",""]
[null,null,"H.","Koszty finansowe",""]
[null,null,"L.","Podatek dochodowy",""]
[null,null,"N.","Zysk/strata netto",""]
[]
[null,null,"Lp.","Bilans - Aktywa","Jedn. / Lata",{"$f":"IF($H$18=\"\",\"\",G28-1)","v":""},{"$f":"IF($H$18=\"\",\"\",H28-1)","v":""},{"$f":"IF($H$18=\"\",\"\",$H$18)","v":""}]
[null,null,"A.","Aktywa trwałe",{"$f":"IF($G$16=\"\",\"\",$G$16)","v":""}]
[null,null,"B.","Aktywa obrotowe",""]
[null,null,"1.","Zapasy",""]
[null,null,"2.","Należności krótkoterminowe",""]
[null,null,"3.","Inwestycje krótkoterminowe, w tym:",""]
[null,null,null," - środki pieniężne",""]
[null,null,"4.","Krótkoterminowe rozl. międzyokresowe",""]
[null,null,"C.","Suma aktywów (A+B)",""]
[]
[null,null,"Lp.","Bilans - Pasywa","Jedn. / Lata",{"$f":"IF($H$18=\"\",\"\",G38-1)","v":""},{"$f":"IF($H$18=\"\",\"\",H38-1)","v":""},{"$f":"IF($H$18=\"\",\"\",$H$18)","v":""}]
[null,null,"A.","Kapitał (fundusz) własny, w tym:",{"$f":"IF($G$16=\"\",\"\",$G$16)","v":""}]
[null,null,"B.","Zobowiązania i rezerwy na zobowiązania",""]
[null,null,"1.","Rezerwy na zobowiazania",""]
[null,null,"2.","Zobowiazania długoterminowe",""]
[null,null,"3.","Zobowiązania krótkoterminowe",""]
[null,null,"4.","Rozliczenia międzyokresowe",""]
[null,null,"C.","Suma Pasywów (A+B)","",null,null,null,"jednoosobowa działalność gospodarcza"]
[null,null,null,null,null,null,null,null,"spółka cywilna"]
[null,null,"Lp.","Rachunek przepływów środków pieniężnych","Jedn. / Lata",{"$f":"IF($H$18=\"\",\"\",G47-1)","v":""},{"$f":"IF($H$18=\"\",\"\",H47-1)","v":""},{"$f":"IF($H$18=\"\",\"\",$H$18)","v":""},"spółka komandytowa"]
[null,null,"A.","Środki pieniężne netto z działalności operacyjnej (+/-)",{"$f":"IF($G$16=\"\",\"\",$G$16)","v":""},null,null,null,"spółka z ograniczoną odpowiedzialnością "]
[null,null,"B.","Przepływy pieniężne netto z działalności inwestycyjnej (+/-)","",null,null,null,"spółka komandytowo-akcyjna"]
[null,null,"C.","Przepływy pieniężne netto z działalności finansowej (+/-)","",null,null,null,"spółka akcyjna"]
[null,null,"1.","Wpływy finansowe (+)",""]
[null,null,"2.","Wydatki finansowe  (+) (2.1+2.2+2.3)","",{"$f":"IF(AND(ISBLANK(F53),ISBLANK(F54),ISBLANK(F55)),\"\",SUM(F53:F55))","v":""},{"$f":"IF(AND(ISBLANK(G53),ISBLANK(G54),ISBLANK(G55)),\"\",SUM(G53:G55))","v":""},""]
[null,null,"2.1","Spłaty rat kredytów/pożyczek (+)",""]
[null,null,"2.2","Spłata odsetek od kredytów/pożyczek (+)",""]
[null,null,"2.3","Inne wydatki finansowe (np. dywidendy) (+)",""]
[null,null,"D.","Przepływy pieniężne netto razem (A.+/-B.+/-C.)",""]
[null,null,"F.","Środki pieniężne na początek okresu",""]
[null,null,"G.","Środki pieniężne na koniec okresu (F+/-D)",""]
[null,null,null,null,null,null,2019,2020]
[]
[null,null,"Lp.","Weryfikacja danych finansowych","Jedn./Lata",{"$f":"IF($H$18=\"\",\"\",G61-1)","v":""},{"$f":"IF($H$18=\"\",\"\",H61-1)","v":""},{"$f":"IF($H$18=\"\",\"\",$H$18)","v":""}]
[null,null,"1.","Suma aktywów = Aktywa trwałe + Aktywa obrotowe",{"$f":"IF($G$16=\"\",\"\",$G$16)","v":""},{"$f":"ROUND(F29+F30-F36,1)","v":0},{"$f":"ROUND(G29+G30-G36,1)","v":0},{"$f":"ROUND(H29+H30-H36,1)","v":0}]
[null,null,"2.","Aktywa obrotowe = Zapasy + Należności krótkoterm + Inwestycje krótkoterm + Krótkoterm rozl. Miedzyokres.",{"$f":"IF($G$16=\"\",\"\",$G$16)","v":""},{"$f":"ROUND((F31+F32+F33+F35)-F30,1)","v":0},0,0]
[null,null,"3.","Suma pasywów = Kapitał własny + Zobowiązania i rezerwy","",{"$f":"ROUND(F39+F40-F45,1)","v":0},{"$f":"ROUND(G39+G40-G45,1)","v":0},{"$f":"ROUND(H39+H40-H45,1)","v":0}]
[null,null,"4.","Zobowiązania i rezerwy na zobow = Rezerwy + Zobow. Długoterm. + Zobow. Krótkoterm. + Rozliczenia międzyokres.","",{"$f":"ROUND((F41+F42+F43+F44)-F40,1)","v":0},0,0]
[null,null,"5.","CF finansowy = Wpływy finansowe - Wydatki finansowe","",{"$f":"IF(F52=\"\",0,ROUND(F51-F52-F50,1))","v":0},0,0]
[null,null,"6.","CF ogólny = CF operacyjny + CF inwestycyjny + CF finansowy","",{"$f":"ROUND(F48+F49+F50-F56,1)","v":0},0,0]
[null,null,"7.","CF na koniec okresu = CF ogólny + Środki na początek okresu","",{"$f":"ROUND(F56+F57-F58,1)","v":0},0,0]
[null,null,"8.","CF na koniec okresu = Aktywa. Inwestycje krótkoterminowe","",{"$f":"ROUND(F58-F34,1)","v":0},{"$f":"ROUND(G58-G34,1)","v":0},{"$f":"ROUND(H58-H34,1)","v":0}]
[null,null,"9.","Suma pasywów = Suma aktywów","",{"$f":"ROUND(F45-F36,1)","v":0},{"$f":"ROUND(G45-G36,1)","v":0},{"$f":"ROUND(H45-H36,1)","v":0}]
[null,null,"10.","Środki pieniężne na koniec okrsu n-1 = Środki pieniężne na początek okresu n","",null,{"$f":"ROUND(F58-G57,1)","v":0},0]

{"sheet":"Wyniki","index":2,"n_rows":265,"n_cols":17,"rows_kept":265,"cut":false,"hidden":false,"merged":[[90,16,92,16],[64,3,64,6],[1,1,1,8],[2,3,2,6],[3,1,6,1],[3,2,6,2],[3,3,3,6],[3,8,6,8],[4,3,4,6],[5,3,5,6],[6,3,6,6],[7,8,10,8],[8,3,8,6],[9,3,9,6],[10,3,10,6],[11,1,14,1],[11,2,14,2],[11,3,11,6],[11,8,14,8],[12,3,12,6],[14,3,14,6],[7,1,10,1],[7,2,10,2],[7,3,7,6],[15,8,17,8],[16,3,16,6],[17,3,17,6],[18,1,20,1],[18,2,20,2],[18,3,18,6],[18,8,20,8],[19,3,19,6],[20,3,20,6],[15,1,17,1],[15,2,17,2],[15,3,15,6],[26,2,28,2],[26,3,26,6],[26,8,28,8],[27,3,27,6],[28,3,28,6],[22,3,22,6],[23,3,23,6],[24,1,25,1],[24,2,25,2],[24,3,24,6],[24,8,25,8],[26,1,28,1],[25,3,25,6],[21,1,23,1],[21,2,23,2],[21,3,21,6],[21,8,23,8],[32,1,34,1],[32,2,34,2],[32,3,32,6],[32,8,34,8],[33,3,33,6],[34,3,34,6],[29,1,31,1],[29,2,31,2],[29,3,29,6],[29,8,31,8],[30,3,30,6],[31,3,31,6],[37,1,39,1],[37,2,39,2],[37,3,37,6],[37,8,39,8],[38,3,38,6],[39,3,39,6],[35,1,36,1],[35,2,36,2],[35,3,35,6],[35,8,36,8],[36,3,36,6],[56,7,56,8],[57,7,57,8],[58,7,58,8],[59,7,59,8],[60,7,60,8],[55,7,55,8],[40,1,40,6],[41,1,41,6],[41,7,41,8],[42,1,42,2],[42,3,42,8],[48,3,48,8],[49,3,49,8],[50,3,50,8],[44,1,44,8],[45,3,45,8],[46,3,46,8],[47,3,47,8],[43,1,43,2],[43,3,43,8],[70,7,70,8],[65,7,65,8],[66,7,66,8],[67,7,67,8],[68,7,68,8],[69,7,69,8],[61,7,61,8],[62,7,62,8],[63,7,63,8],[64,7,64,8],[13,3,13,6],[260,8,260,10],[261,8,261,10],[262,8,262,10],[263,8,263,10],[90,14,92,15],[71,1,71,8],[228,1,228,2],[242,1,242,2],[256,1,256,2],[200,1,200,2],[214,1,214,2],[133,1,133,3],[147,1,147,3],[161,1,161,3],[175,1,175,3],[186,1,186,2],[91,1,91,3],[105,1,105,3],[119,1,119,3],[257,8,257,10],[258,8,258,10],[259,8,259,10],[92,8,92,12]]}
[]
[null,"Kategoria bieżącej sytuacji finansowej"]
[null,"Lp.","Kryterium","Klasyfikacja punktowa",null,null,null,"Punktacja","Punkty"]
[null,"1.","Przychody ze sprzedaży.\n\nFormuła liczenia: zmiana przychodów ze sprzedaży"," - rośnie z roku na rok",null,null,null,10,{"$f":"IF(OR(ISNUMBER(Wyniki!E57),ISNUMBER(Wyniki!F57),ISNUMBER(Wyniki!G57)),Wyniki!E77,0)","v":0}]
[null,null,null," - w ostatnim  roku powyżej roku poprzedniego",null,null,null,6]
[null,null,null," - brak danych za 3 lata (działalność prowadzona jest krócej)",null,null,null,3]
[null,null,null," - pozostałe przypadki",null,null,null,2]
[null,"2.","Rentowność sprzedaży - wskaźnik rentowności sprzedaży.\n\nFormuła liczenia: wynik na sprzedaży / sprzedaż ogółem"," - we wszystkich okresach dodatnia i w ostatnim roku wzrosła",null,null,null,10,{"$f":"IF(OR(ISNUMBER(Wyniki!E58),ISNUMBER(Wyniki!F58),ISNUMBER(Wyniki!G58)),Wyniki!E78,0)","v":0}]
[null,null,null," - we wszystkich okresach dodatnia i w ostatnim roku zmalała",null,null,null,8]
[null,null,null," - we wszystkich lub ostatnich 2 okresach ujemna",null,null,null,0]
[null,null,null," - pozostałe przypadki",null,null,null,5]
[null,"3.","Rentowność kapitału - wskaźnik ROE.\n\nFormuła liczenia: wynik netto / kapitały własne"," - 5,0% i powyżej ",null,null,null,10,{"$f":"ROUND(Wyniki!E79,0)","v":0}]
[null,null,null," - pomiędzy 0,0% - 5,0% (liniowo)",null,null,null,"0-10"]
[null,null,null," - poniżej 0,0%",null,null,null,0]
[null,null,null," - w przypadku, gdy zarówno kapitał własny jak i wynik netto są ujemne",null,null,null,0]
[null,"4.","Płynność finansowa - wskaźnik płynności finansowej II stopnia.\n\nFormuła liczenia: (aktywa bieżące - zapasy) / zobowiązania bieżące"," - 1,1 i powyżej ",null,null,null,10,{"$f":"ROUND(Wyniki!E80,0)","v":0}]
[null,null,null," - pomiędzy 0,75 - 1,1 (liniowo)",null,null,null,"0-10"]
[null,null,null," - poniżej 0,75",null,null,null,0]
[null,"5.","Pokrycie zadłużenia - wskaźnik pokrycia obsługi długu z gotówki operacyjnej.\n\nFormuła liczenia: CF operacyjny / zadłużenie (zobowiązania ogółem)"," - 30,0% i powyżej ",null,null,null,5,{"$f":"ROUND(Wyniki!E81,0)","v":0}]
[null,null,null," - pomiędzy 0,0% - 30,0% (liniowo)",null,null,null,"0-5"]
[null,null,null," - poniżej 0,0%",null,null,null,0]
[null,"6.","Wypłacalność - wskaźnik pokrycia aktywów kapitałami własnymi.\n\nFormuła liczenia: kapitał własny / aktywa ogółem"," - 50,0% i powyżej ",null,null,null,5,{"$f":"ROUND(Wyniki!E82,0)","v":0}]
[null,null,null," - pomiędzy 10,0% - 50,0% (liniowo)",null,null,null,"0-5"]
[null,null,null," - 10,0% i poniżej",null,null,null,0]
[null,"7.","Poziom zadłużenia - wskaźnik ogólnego zadłużenia.\n\nFormuła liczenia:  (zobowiązania + rezerwy na zobowiązania) / aktywa ogółem"," - 0,67 i powyżej ",null,null,null,0,{"$f":"IF(OR(ISNUMBER(Wyniki!E63),ISNUMBER(Wyniki!F63),ISNUMBER(Wyniki!G63)),Wyniki!E83,0)","v":0}]
[null,null,null," - pomiędzy 0,0 - 0,67 (liniowo)",null,null,null,"0-10"]
[null,"8.","Pokrycie zadłużenia - wskaźnik pokrycia obsługi długu z przepływów pieniężnych WPOD. \n\nFormuła liczenia: (CF operacyjny + CF inwestycyjny + CF finansowy (wpływy) + saldo środków na początek okresu) / CF finansowy (wydatki)"," - 2,0 i powyżej ",null,null,null,10,{"$f":"ROUND(Wyniki!E84,0)","v":10}]
[null,null,null," - pomiędzy 1,0 - 2,0 (liniowo)",null,null,null,"1-9"]
[null,null,null," - poniżej 1,0",null,null,null,0]
[null,"9.","Sprawność działalnia - wskaźniki rotacji (zapasów, należności i zobowiązań). \n\nFormuła liczenia: (stan zapasów, należności, zobowiązań x liczba dni) / przychody netto ze sprzedaży"," - poniżej 15/30 dni (zapasy/należności, zobowiązania)",null,null,null,10,{"$f":"ROUND(Wyniki!E85,0)","v":0}]
[null,null,null," - pomiędzy 15-30 / 30- 90 dni (zapasy/należności, zobowiązania) (liniowo)",null,null,null,"0-10"]
[null,null,null," - powyżej 60/90 dni (zapasy/należności, zobowiązania)",null,null,null,0]
[null,"10.","Pokrycie aktywów stałych.\n\nFormuła liczenia: kapitał własny / aktywa trwałe"," - 1,1 i powyżej ",null,null,null,5,{"$f":"ROUND(E86,0)","v":0}]
[null,null,null," - pomiędzy 0,8 - 1,1 (liniowo)",null,null,null,"0-5"]
[null,null,null," - 0,8 i poniżej",null,null,null,0]
[null,"11.","Efekt dźwigni finansowej.\n\nFormuła liczenia: ROE > (wynik netto + koszty odsetek + podatek dochodowy) / aktywa ogółem"," - \"TAK\"",null,null,null,5,{"$f":"ROUND(Wyniki!E87,0)","v":0}]
[null,null,null," - \"NIE\"",null,null,null,0]
[null,"12.","Analiza dyskryminacyjna - model prof. E. Mączyńskiej\n\nFormuła liczenia: W= 1,51 X1 + 0,08 X2 + 10,00 X3 + 5,00 X4 + 0,30 X5 + 0,10 X6\nGdzie:\nX1 - amortyzacja + zysk netto/zobowiązania\nX2 - suma bilansowa/zobowiązania\nX3 - EBIT/suma bilansowa\nX4 - EBIT/przychody ze sprzedaży\nX5 - zapasy/przychody ze sprzedaży X6 - przychody ze sprzedaży/ suma bilansowa"," - 2,0 i powyżej ",null,null,null,10,{"$f":"IF(ISNUMBER(E88),ROUND(Wyniki!E88,0),\"brak danych\")","v":"brak danych"}]
[null,null,null," - pomiędzy 0,0 - 2,0 (liniowo)",null,null,null,"1-9"]
[null,null,null," - poniżej 0,0",null,null,null,0]
[null,"Suma punktów:",null,null,null,null,null,null,{"$f":"SUM(I4:I40)","v":10}]
[null,"Kategoria bieżącej sytuacji finansowej:",null,null,null,null,null,{"$f":"IF(I41>75,\"Wysoka\",IF(I41>59,\"Dobra\",IF(I41>49,\"Zadawalająca\",IF(I41>32,\"Niska\",\"Zła/trudności finansowe\"))))","v":"Zła/trudności finansowe"}]
[null,{"$f":"IF('Dane finansowe'!C3=\"\",\"\",'Dane finansowe'!C3)","v":"Nazwa:"},null,{"$f":"IF('Dane finansowe'!E3=\"\",\"\",'Dane finansowe'!E3)","v":""}]
[null,{"$f":"IF('Dane finansowe'!C4=\"\",\"\",'Dane finansowe'!C4)","v":"Adres:"},null,{"$f":"IF('Dane finansowe'!E4=\"\",\"\",'Dane finansowe'!E4)","v":""}]
[null,"Bieżąca sytuacja finansowa - Informacja pomocnicza - Interpretacja wyników"]
[null,"Lp.","Kategoria bieżącej sytuacji finansowej:","Punktacja bieżącej sytuacji finansowej:"]
[null,"1.","Bieżąca sytuacja finansowa - Wysoka","76-100 pkt."]
[null,"2.","Bieżąca sytuacja finansowa - Dobra","60-75 pkt."]
[null,"3.","Bieżąca sytuacja finansowa - Zadowalająca","50-59 pkt."]
[null,"4.","Bieżąca sytuacja finansowa - Niska","33-49 pkt."]
[null,"5.","Bieżąca sytuacja finansowa - Zła / trudności finansowe","0-32 pkt."]
[]
[]
[]
[null,"Analiza ilościowa - wskaźniki finansowe"]
[null,"Lp.","Wyszczególnienie","Jedn./Lata",{"$f":"'Dane finansowe'!F18","v":""},{"$f":"'Dane finansowe'!G18","v":""},{"$f":"'Dane finansowe'!H18","v":""},"Nr Kryterium"]
[null,"1.","Dynamika sprzedaży. Formuła: zmiana przychodów ze sprzedaży rok do roku",{"$f":"IF('Dane finansowe'!G16=\"\",\"\",'Dane finansowe'!G16)","v":""},{"$f":"IF('Dane finansowe'!F19=0,\"\",('Dane finansowe'!F19))","v":""},{"$f":"IF('Dane finansowe'!G19=0,\"\",('Dane finansowe'!G19))","v":""},{"$f":"IF('Dane finansowe'!H19=0,\"\",('Dane finansowe'!H19))","v":""},"Kryterium nr 1"]
[null,"2.","Rentowność sprzedaży - wskaźnik rentowności sprzedaży. Formuła: wynik na sprzedaży / sprzedaż ogółem","%",{"$f":"IF('Dane finansowe'!F19=0,\"\",'Dane finansowe'!F22/'Dane finansowe'!F19)","v":""},{"$f":"IF('Dane finansowe'!G19=0,\"\",'Dane finansowe'!G22/'Dane finansowe'!G19)","v":""},{"$f":"IF('Dane finansowe'!H19=0,\"\",'Dane finansowe'!H22/'Dane finansowe'!H19)","v":""},"Kryterium nr 2"]
[null,"3.","Rentowność kapitału - wskaźnik ROE. Formuła: wynik netto / kapitały własne","%",{"$f":"IF('Dane finansowe'!F39=0,\"\",'Dane finansowe'!F26/'Dane finansowe'!F39)","v":""},{"$f":"IF('Dane finansowe'!G39=0,\"\",'Dane finansowe'!G26/'Dane finansowe'!G39)","v":""},{"$f":"IF('Dane finansowe'!H39=0,\"\",'Dane finansowe'!H26/'Dane finansowe'!H39)","v":""},"Kryterium nr 3"]
[null,"4.","Płynność finansowa - wskaźnik płynności finansowej II stopnia: Formuła: (aktywa bieżące - zapasy) / zobowiązania bieżące","liczba",{"$f":"IF(ISNUMBER('Dane finansowe'!F43),IF('Dane finansowe'!F43=0,1.1,('Dane finansowe'!F30-'Dane finansowe'!F31)/'Dane finansowe'!F43),\"\")","v":""},{"$f":"IF(ISNUMBER('Dane finansowe'!G43),IF('Dane finansowe'!G43=0,1.1,('Dane finansowe'!G30-'Dane finansowe'!G31)/'Dane finansowe'!G43),\"\")","v":""},{"$f":"IF(ISNUMBER('Dane finansowe'!H43),IF('Dane finansowe'!H43=0,1.1,('Dane finansowe'!H30-'Dane finansowe'!H31)/'Dane finansowe'!H43),\"\")","v":""},"Kryterium nr 4"]
[null,"5.","Pokrycie zadłużenia - wskaźnik pokrycia obsługi długu z gotówki operacyjnej. Formuła: CF operacyjny / zadłużenie (zobowiązania ogółem)","%",{"$f":"IF('Dane finansowe'!F40=0,\"\",'Dane finansowe'!F48/'Dane finansowe'!F40)","v":""},{"$f":"IF('Dane finansowe'!G40=0,\"\",'Dane finansowe'!G48/'Dane finansowe'!G40)","v":""},{"$f":"IF('Dane finansowe'!H40=0,\"\",'Dane finansowe'!H48/'Dane finansowe'!H40)","v":""},"Kryterium nr 5"]
[null,"6.","Wypłacalność - wskaźnik pokrycia aktywów kapitałami własnymi. Formuła: kapitał własny / aktywa ogółem","%",{"$f":"IF('Dane finansowe'!F36=0,\"\",'Dane finansowe'!F39/'Dane finansowe'!F36)","v":""},{"$f":"IF('Dane finansowe'!G36=0,\"\",'Dane finansowe'!G39/'Dane finansowe'!G36)","v":""},{"$f":"IF('Dane finansowe'!H36=0,\"\",'Dane finansowe'!H39/'Dane finansowe'!H36)","v":""},"Kryterium nr 6"]
[null,"7.","Poziom zadłużenia - wskaźnik ogólnego zadłużenia. Formuła: (zobowiązania + rezerwy na zobowiązania) / aktywa ogółem","liczba",{"$f":"IF('Dane finansowe'!F36=0,\"\",('Dane finansowe'!F40)/'Dane finansowe'!F36)","v":""},{"$f":"IF('Dane finansowe'!G36=0,\"\",('Dane finansowe'!G40)/'Dane finansowe'!G36)","v":""},{"$f":"IF('Dane finansowe'!H36=0,\"\",('Dane finansowe'!H40)/'Dane finansowe'!H36)","v":""},"Kryterium nr 7"]
[null,"8.","Pokrycie zadłużenia - wskaźnik pokrycia obsługi długu z przepływów pieniężnych WPOD. Formuła: (CF operacyjny + CF inwestycyjny + CF finansowy (wpływy) + saldo środków na początek okresu) / CF finansowy (wydatki)","liczba*",{"$f":"IF(E182=0,2,IF(E182=\"\",\"\",E183))","v":2},{"$f":"IF(F182=0,2,IF(F182=\"\",\"\",F183))","v":2},2,"Kryterium nr 8"]
[null,"9.","Sprawność działalnia - wskaźniki rotacji (zapasów, należności i zobowiązań). Formuła: (stan zapasów, należności, zobowiązań x liczba dni) / przychody netto ze sprzedaży",null,null,null,null,"Kryterium nr 9"]
[null,"9.1","Wskaźnik rotacji zapasów","dni",{"$f":"IF('Dane finansowe'!F19=0,\"\",(('Dane finansowe'!F31/'Dane finansowe'!F19)*365))","v":""},{"$f":"IF('Dane finansowe'!G19=0,\"\",(('Dane finansowe'!G31/'Dane finansowe'!G19)*365))","v":""},{"$f":"IF('Dane finansowe'!H19=0,\"\",(('Dane finansowe'!H31/'Dane finansowe'!H19)*365))","v":""},"Kryterium nr 9.1"]
[null,"9.2","Wskaźnik rotacji należności","dni",{"$f":"IF('Dane finansowe'!F19=0,\"\",(('Dane finansowe'!F32/'Dane finansowe'!F19)*365))","v":""},{"$f":"IF('Dane finansowe'!G19=0,\"\",(('Dane finansowe'!G32/'Dane finansowe'!G19)*365))","v":""},{"$f":"IF('Dane finansowe'!H19=0,\"\",(('Dane finansowe'!H32/'Dane finansowe'!H19)*365))","v":""},"Kryterium nr 9.2"]
[null,"9.3","Wskaźnik rotacji zobowiązań krótkoterminowych","dni",{"$f":"IF('Dane finansowe'!F19=0,\"\",(('Dane finansowe'!F43/'Dane finansowe'!F19)*365))","v":""},{"$f":"IF('Dane finansowe'!G19=0,\"\",(('Dane finansowe'!G43/'Dane finansowe'!G19)*365))","v":""},{"$f":"IF('Dane finansowe'!H19=0,\"\",(('Dane finansowe'!H43/'Dane finansowe'!H19)*365))","v":""},"Kryterium nr 9.3"]
[null,"10.","Pokrycie aktywów stałych: kapitał własny / aktywa trwałe","liczba",{"$f":"IF('Dane finansowe'!F29=0,\"\",'Dane finansowe'!F39/'Dane finansowe'!F29)","v":""},{"$f":"IF('Dane finansowe'!G29=0,\"\",'Dane finansowe'!G39/'Dane finansowe'!G29)","v":""},{"$f":"IF('Dane finansowe'!H29=0,\"\",'Dane finansowe'!H39/'Dane finansowe'!H29)","v":""},"Kryterium nr 10"]
[null,"11.","Efekt dźwigni finansowej: ROE > (wynik netto + koszty odsetek + podatek dochodowy) / aktywa ogółem","TAK/NIE",{"$f":"IF('Dane finansowe'!F36=0,\"\",IF(E59>(('Dane finansowe'!F26+'Dane finansowe'!F24+'Dane finansowe'!F25)/'Dane finansowe'!F36),\"TAK\",\"NIE\"))","v":""},{"$f":"IF('Dane finansowe'!G36=0,\"\",IF(F59>(('Dane finansowe'!G26+'Dane finansowe'!G24+'Dane finansowe'!G25)/'Dane finansowe'!G36),\"TAK\",\"NIE\"))","v":""},{"$f":"IF('Dane finansowe'!H36=0,\"\",IF(G59>(('Dane finansowe'!H26+'Dane finansowe'!H24+'Dane finansowe'!H25)/'Dane finansowe'!H36),\"TAK\",\"NIE\"))","v":""},"Kryterium nr 11"]
[null,"12.","Analiza dyskryminacyjna - model prof. E. Mączyńskiej","liczba",{"$f":"IF(ISNUMBER(E265),E265,\"\")","v":""},{"$f":"IF(ISNUMBER(F265),F265,\"\")","v":""},{"$f":"IF(ISNUMBER(G265),G265,\"\")","v":""},"Kryterium nr 12"]
[null,"* W przypadku braku wydatków finansowych wskaźnik WPOD przyjmuje wartość 2,0"]
[]
[]
[null,"Wskaźniki finansowe"]
[null,"Lp.","Wyszczególnienie","Jednostka","Wynik","Metoda"]
[null,{"$f":"B57","v":"1."},"Dynamika sprzedaży. Formuła: zmiana przychodów ze sprzedaży rok do roku","pkt.",{"$f":"IF(AND(ISNUMBER(Wyniki!E57),ISNUMBER(Wyniki!F57),ISNUMBER(Wyniki!G57)),IF(AND(Wyniki!E57<Wyniki!F57,Wyniki!F57<Wyniki!G57),10,IF(Wyniki!F57<Wyniki!G57,6,2)),3)","v":3},"Obliczenia łańcuchowe"]
[null,"2.","Rentowność sprzedaży - wskaźnik rentowności sprzedaży. Formuła: wynik na sprzedaży / sprzedaż ogółem","pkt.",{"$f":"IF(AND(E58>=0,F58>=0,G58>=0,G58>F58),10,IF(AND(E58>=0,F58>=0,G58>=0,G58<F58),8,IF(OR((AND(E58<=0,F58<=0,G58<=0)),(AND(F58<=0,G58<=0))),0,5)))","v":5},"Obliczenia łańcuchowe"]
[null,"3.","Rentowność kapitału - wskaźnik ROE. Formuła: wynik netto / kapitały własne","pkt.",{"$f":"IF(ISNUMBER(E102),E102,0)","v":0},"Średnia z wprowadzonych okresów"]
[null,"4.","Płynność finansowa - wskaźnik płynności finansowej II stopnia: Formuła: (aktywa bieżące - zapasy) / zobowiązania bieżące","pkt.",{"$f":"IF(ISNUMBER(E116),E116,0)","v":0},"Średnia z wprowadzonych okresów"]
[null,"5.","Pokrycie zadłużenia - wskaźnik pokrycia obsługi długu z gotówki operacyjnej. Formuła: CF operacyjny / zadłużenie (zobowiązania ogółem)","pkt.",{"$f":"IF(ISNUMBER(E130),E130,0)","v":0},"Średnia z wprowadzonych okresów"]
[null,"6.","Wypłacalność - wskaźnik pokrycia aktywów kapitałami własnymi. Formuła: kapitał własny / aktywa ogółem","pkt.",{"$f":"IF(ISNUMBER(E144),E144,0)","v":0},"Średnia z wprowadzonych okresów"]
[null,"7.","Poziom zadłużenia - wskaźnik ogólnego zadłużenia. Formuła: (zobowiązania + rezerwy na zobowiązania) / aktywa ogółem","pkt.",{"$f":"IF(ISNUMBER(E158),E158,0)","v":0},"Średnia z wprowadzonych okresów"]
[null,"8.","Pokrycie zadłużenia - wskaźnik pokrycia obsługi długu z przepływów pieniężnych WPOD. Formuła: (CF operacyjny + CF inwestycyjny + CF finansowy (wpływy) + saldo środków na początek okresu) / CF finansowy (wydatki)","pkt.",{"$f":"IF(ISNUMBER(E172),E172,0)","v":10},"Średnia z wprowadzonych okresów"]
[null,"9.","Sprawność działalnia - wskaźniki rotacji (zapasów, należności i zobowiązań). Formuła: (stan zapasów, należności, zobowiązań x liczba dni) / przychody netto ze sprzedaży","pkt.",{"$f":"IF((AND(ISNUMBER(E197),ISNUMBER(E211),ISNUMBER(E225))),AVERAGE(E197,E211,E225),0)","v":0},"Średnia ze średniej z trzech wskaźników rotacji"]
[null,{"$f":"B69","v":"10."},"Pokrycie aktywów stałych: kapitał własny / aktywa trwałe","pkt.",{"$f":"IF(ISNUMBER(E239),E239,0)","v":0},"Średnia z wprowadzonych okresów"]
[null,"11.","Efekt dźwigni finansowej: ROE > (wynik netto + koszty odsetek + podatek dochodowy) / aktywa ogółem","pkt.",{"$f":"IF(Wyniki!G70=\"tak\",5,0)","v":0},"Wartość z ostatniego roku"]
[null,"12.","Analiza dyskryminacyjna - model prof. E. Mączyńskiej","pkt.",{"$f":"IF(ISNUMBER(E253),E253,\"brak danych\")","v":"brak danych"},"Średnia z wprowadzonych okresów"]
[]
[]
[null,null,{"$f":"H59","v":"Kryterium nr 3"},null,null,null,null,null,null,null,null,null,null,null,"WIBOR 1R",null,"Dane na dzień"]
[null,{"$f":"C59","v":"Rentowność kapitału - wskaźnik ROE. Formuła: wynik netto / kapitały własne"}]
[null,"Lp.","Wyszczególnienie","Jedn./Lata",{"$f":"E56","v":""},{"$f":"F56","v":""},{"$f":"G56","v":""},null,"Dane uzupełniające do oceny punktowej wskaźnika rentowności kapitału"]
[null,"1.","Przedział wartości wskaźnika",null,null,null,null,null,"Lp.","Wyszczególnienie",{"$f":"IF('Dane finansowe'!$H$18=\"\",\"\",L94-1)","v":""},{"$f":"IF('Dane finansowe'!$H$18=\"\",\"\",M94-1)","v":""},{"$f":"IF('Dane finansowe'!$H$18=\"\",\"\",'Dane finansowe'!$H$18)","v":""},null,2016,1.7964999999999998E-2,"2016-12-30"]
[null," "," - wartość minimalna","%",0,{"$f":"E95","v":0},{"$f":"F95","v":0},null,"1.","WIBOR 1R",{"$f":"IF(K94=\"\",\"\",IF(K94=2015,P94,P95))","v":""},{"$f":"IF(L94=\"\",\"\",IF(L94=2016,P95,P96))","v":""},{"$f":"IF(M94=\"\",\"\",IF(M94=2017,P96,P97))","v":""},null,2017,1.8499999999999999E-2,"2017-12-28"]
[null," "," - wartość maksymalna","%",{"$f":"IF(Wyniki!K95=\"\",\"\",Wyniki!K95+Wyniki!K96)","v":""},{"$f":"IF(Wyniki!L95=\"\",\"\",Wyniki!L95+Wyniki!L96)","v":""},{"$f":"IF(Wyniki!M95=\"\",\"\",Wyniki!M95+Wyniki!M96)","v":""},null,"2.","Premia za ryzyko",0.03,{"$f":"K96","v":0.03},{"$f":"L96","v":0.03},null,2018,1.8423999999999999E-2,"2018-12-31"]
[null,"2.","Przedział punktowy",null,null,null,null,null,"Razem","Wartość maksymalna ROE",{"$f":"SUM(K95:K96)","v":0.03},{"$f":"SUM(L95:L96)","v":0.03},0.03,null,2019,1.84E-2,"2019-12-31"]
[null," "," - wartość minimalna","pkt.",0,{"$f":"E98","v":0},0,null,null,null,null,null,null,null,"Źródło: http://www.bankier.pl/kredyty-hipoteczne/stopy-procentowe/wibor"]
[null," "," - wartość maksymalna","pkt.",10,10,10]
[null,"3.","Wartość wskaźnika","%",{"$f":"IF(ISNUMBER(E59),E59,\"\")","v":""},{"$f":"IF(ISNUMBER(F59),F59,\"\")","v":""},{"$f":"IF(ISNUMBER(G59),G59,\"\")","v":""}]
[null,"4.","Ilość punktów","pkt.",{"$f":"IF(AND('Dane finansowe'!F26<0,'Dane finansowe'!F39<0),0,IF(ISNUMBER(E59),IF(E100<E95,E98,IF(E100>E96,E99,IF(AND(E100<=E96,E100>=E95),IF(ISNUMBER(E100),ROUND(FORECAST(E100,E98:E99,E95:E96),0),\"\")))),\"\"))","v":""},{"$f":"IF(AND('Dane finansowe'!G26<0,'Dane finansowe'!G39<0),0,IF(ISNUMBER(F59),IF(F100<F95,F98,IF(F100>F96,F99,IF(AND(F100<=F96,F100>=F95),IF(ISNUMBER(F100),ROUND(FORECAST(F100,F98:F99,F95:F96),0),\"\")))),\"\"))","v":""},{"$f":"IF(AND('Dane finansowe'!H26<0,'Dane finansowe'!H39<0),0,IF(ISNUMBER(G59),IF(G100<G95,G98,IF(G100>G96,G99,IF(AND(G100<=G96,G100>=G95),IF(ISNUMBER(G100),ROUND(FORECAST(G100,G98:G99,G95:G96),0),\"\")))),\"\"))","v":""}]
[null,"5.","Średnia z ilości punktów","pkt.",{"$f":"IF(G101=\"\",\"brak danych\",ROUND(IF(ISNUMBER(E101),AVERAGE(E101:G101),IF(ISNUMBER(F101),AVERAGE(F101:G101),IF(ISNUMBER(G101),G101,\"bd\"))),0))","v":"brak danych"}]
[]
[]
[null,null,{"$f":"H60","v":"Kryterium nr 4"}]
[null,{"$f":"C60","v":"Płynność finansowa - wskaźnik płynności finansowej II stopnia: Formuła: (aktywa bieżące - zapasy) / zobowiązania bieżące"}]
[null,"Lp.","Wyszczególnienie","Jedn./Lata",{"$f":"E56","v":""},{"$f":"F56","v":""},{"$f":"G56","v":""}]
[null,"1.","Przedział wartości wskaźnika"]
[null," "," - wartość minimalna","liczba",0.75,{"$f":"E109","v":0.75},0.75]
[null," "," - wartość maksymalna","liczba",1.1000000000000001,1.1000000000000001,1.1000000000000001]
[null,"2.","Przedział punktowy"]
[null," "," - wartość minimalna","pkt.",0,{"$f":"E112","v":0},0]
[null," "," - wartość maksymalna","pkt.",10,10,10]
[null,"3.","Wartość wskaźnika","liczba",{"$f":"IF(ISNUMBER(E60),E60,\"\")","v":""},{"$f":"IF(ISNUMBER(F60),F60,\"\")","v":""},{"$f":"IF(ISNUMBER(G60),G60,\"\")","v":""}]
[null,"4.","Ilość punktów","pkt.",{"$f":"IF(ISNUMBER(E60),IF(E114<E109,E112,IF(E114>E110,E113,IF(AND(E114<=E110,E114>=E109),IF(ISNUMBER(E114),ROUND(FORECAST(E114,E112:E113,E109:E110),0),\"\")))),\"\")","v":""},{"$f":"IF(ISNUMBER(F60),IF(F114<F109,F112,IF(F114>F110,F113,IF(AND(F114<=F110,F114>=F109),IF(ISNUMBER(F114),ROUND(FORECAST(F114,F112:F113,F109:F110),0),\"\")))),\"\")","v":""},{"$f":"IF(ISNUMBER(G60),IF(G114<G109,G112,IF(G114>G110,G113,IF(AND(G114<=G110,G114>=G109),IF(ISNUMBER(G114),ROUND(FORECAST(G114,G112:G113,G109:G110),0),\"\")))),\"\")","v":""}]
[null,"5.","Średnia z ilości punktów","pkt.",{"$f":"IF(G115=\"\",\"brak danych\",ROUND(IF(ISNUMBER(E115),AVERAGE(E115:G115),IF(ISNUMBER(F115),AVERAGE(F115:G115),IF(ISNUMBER(G115),G115,\"bd\"))),0))","v":"brak danych"}]
[]
[]
[null,null,{"$f":"H61","v":"Kryterium nr 5"}]
[null,{"$f":"C61","v":"Pokrycie zadłużenia - wskaźnik pokrycia obsługi długu z gotówki operacyjnej. Formuła: CF operacyjny / zadłużenie (zobowiązania ogółem)"}]
[null,"Lp.","Wyszczególnienie","Jedn./Lata",{"$f":"E56","v":""},{"$f":"F56","v":""},{"$f":"G56","v":""}]
[null,"1.","Przedział wartości wskaźnika"]
[null," "," - wartość minimalna","%",0,{"$f":"E123","v":0},0]
[null," "," - wartość maksymalna","%",0.3,0.3,0.3]
[null,"2.","Przedział punktowy"]
[null," "," - wartość minimalna","pkt.",0,{"$f":"E126","v":0},0]
[null," "," - wartość maksymalna","pkt.",5,5,5]
[null,"3.","Wartość wskaźnika","%",{"$f":"IF(ISNUMBER(E61),E61,\"\")","v":""},{"$f":"IF(ISNUMBER(F61),F61,\"\")","v":""},{"$f":"IF(ISNUMBER(G61),G61,\"\")","v":""}]
[null,"4.","Ilość punktów","pkt.",{"$f":"IF(ISNUMBER(E61),IF(E128<E123,E126,IF(E128>E124,E127,IF(AND(E128<=E124,E128>=E123),IF(ISNUMBER(E128),ROUND(FORECAST(E128,E126:E127,E123:E124),0),\"\")))),\"\")","v":""},{"$f":"IF(ISNUMBER(F61),IF(F128<F123,F126,IF(F128>F124,F127,IF(AND(F128<=F124,F128>=F123),IF(ISNUMBER(F128),ROUND(FORECAST(F128,F126:F127,F123:F124),0),\"\")))),\"\")","v":""},{"$f":"IF(ISNUMBER(G61),IF(G128<G123,G126,IF(G128>G124,G127,IF(AND(G128<=G124,G128>=G123),IF(ISNUMBER(G128),ROUND(FORECAST(G128,G126:G127,G123:G124),0),\"\")))),\"\")","v":""}]
[null,"5.","Średnia z ilości punktów","pkt.",{"$f":"IF(G129=\"\",\"brak danych\",ROUND(IF(ISNUMBER(E129),AVERAGE(E129:G129),IF(ISNUMBER(F129),AVERAGE(F129:G129),IF(ISNUMBER(G129),G129,\"bd\"))),0))","v":"brak danych"}]
[]
[]
[null,null,{"$f":"H62","v":"Kryterium nr 6"}]
[null,{"$f":"C62","v":"Wypłacalność - wskaźnik pokrycia aktywów kapitałami własnymi. Formuła: kapitał własny / aktywa ogółem"}]
[null,"Lp.","Wyszczególnienie","Jedn./Lata",{"$f":"E56","v":""},{"$f":"F56","v":""},{"$f":"G56","v":""}]
[null,"1.","Przedział wartości wskaźnika"]
[null," "," - wartość minimalna","%",0.1,{"$f":"E137","v":0.1},0.1]
[null," "," - wartość maksymalna","%",0.5,0.5,0.5]
[null,"2.","Przedział punktowy"]
[null," "," - wartość minimalna","pkt.",0,{"$f":"E140","v":0},0]
[null," "," - wartość maksymalna","pkt.",5,5,5]
[null,"3.","Wartość wskaźnika","%",{"$f":"IF(ISNUMBER(E62),E62,\"\")","v":""},{"$f":"IF(ISNUMBER(F62),F62,\"\")","v":""},{"$f":"IF(ISNUMBER(G62),G62,\"\")","v":""}]
[null,"4.","Ilość punktów","pkt.",{"$f":"IF(ISNUMBER(E62),IF(E142<E137,E140,IF(E142>E138,E141,IF(AND(E142<=E138,E142>=E137),IF(ISNUMBER(E142),ROUND(FORECAST(E142,E140:E141,E137:E138),0),\"\")))),\"\")","v":""},{"$f":"IF(ISNUMBER(F62),IF(F142<F137,F140,IF(F142>F138,F141,IF(AND(F142<=F138,F142>=F137),IF(ISNUMBER(F142),ROUND(FORECAST(F142,F140:F141,F137:F138),0),\"\")))),\"\")","v":""},{"$f":"IF(ISNUMBER(G62),IF(G142<G137,G140,IF(G142>G138,G141,IF(AND(G142<=G138,G142>=G137),IF(ISNUMBER(G142),ROUND(FORECAST(G142,G140:G141,G137:G138),0),\"\")))),\"\")","v":""}]
[null,"5.","Średnia z ilości punktów","pkt.",{"$f":"IF(G143=\"\",\"brak danych\",ROUND(IF(ISNUMBER(E143),AVERAGE(E143:G143),IF(ISNUMBER(F143),AVERAGE(F143:G143),IF(ISNUMBER(G143),G143,\"bd\"))),0))","v":"brak danych"}]
[]
[]
[null,null,{"$f":"H63","v":"Kryterium nr 7"}]
[null,{"$f":"C63","v":"Poziom zadłużenia - wskaźnik ogólnego zadłużenia. Formuła: (zobowiązania + rezerwy na zobowiązania) / aktywa ogółem"}]
[null,"Lp.","Wyszczególnienie","Jedn./Lata",{"$f":"E56","v":""},{"$f":"F56","v":""},{"$f":"G56","v":""}]
[null,"1.","Przedział wartości wskaźnika"]
[null," "," - wartość minimalna","liczba",0,{"$f":"E151","v":0},0]
[null," "," - wartość maksymalna","liczba",0.67,0.67,0.67]
[null,"2.","Przedział punktowy"]
[null," "," - wartość minimalna","pkt.",10,{"$f":"E154","v":10},10]
[null," "," - wartość maksymalna","pkt.",0,0,0]
[null,"3.","Wartość wskaźnika","liczba",{"$f":"IF(ISNUMBER(E63),E63,\"\")","v":""},{"$f":"IF(ISNUMBER(F63),F63,\"\")","v":""},{"$f":"IF(ISNUMBER(G63),G63,\"\")","v":""}]
[null,"4.","Ilość punktów","pkt.",{"$f":"IF(ISNUMBER(E63),IF(E156<E151,E154,IF(E156>E152,E155,IF(AND(E156<=E152,E156>=E151),IF(ISNUMBER(E156),ROUND(FORECAST(E156,E154:E155,E151:E152),0),\"\")))),\"\")","v":""},{"$f":"IF(ISNUMBER(F63),IF(F156<F151,F154,IF(F156>F152,F155,IF(AND(F156<=F152,F156>=F151),IF(ISNUMBER(F156),ROUND(FORECAST(F156,F154:F155,F151:F152),0),\"\")))),\"\")","v":""},{"$f":"IF(ISNUMBER(G63),IF(G156<G151,G154,IF(G156>G152,G155,IF(AND(G156<=G152,G156>=G151),IF(ISNUMBER(G156),ROUND(FORECAST(G156,G154:G155,G151:G152),0),\"\")))),\"\")","v":""}]
[null,"5.","Średnia z ilości punktów","pkt.",{"$f":"IF(G157=\"\",\"brak danych\",ROUND(IF(ISNUMBER(E157),AVERAGE(E157:G157),IF(ISNUMBER(F157),AVERAGE(F157:G157),IF(ISNUMBER(G157),G157,\"bd\"))),0))","v":"brak danych"}]
[]
[]
[null,null,{"$f":"H64","v":"Kryterium nr 8"}]
[null,{"$f":"C64","v":"Pokrycie zadłużenia - wskaźnik pokrycia obsługi długu z przepływów pieniężnych WPOD. Formuła: (CF operacyjny + CF inwestycyjny + CF finansowy (wpływy) + saldo środków na początek okresu) / CF finansowy (wydatki)"}]
[null,"Lp.","Wyszczególnienie","Jedn./Lata",{"$f":"E56","v":""},{"$f":"F56","v":""},{"$f":"G56","v":""}]
[null,"1.","Przedział wartości wskaźnika"]
[null," "," - wartość minimalna","liczba",1,{"$f":"E165","v":1},1]
[null," "," - wartość maksymalna","liczba",2,2,2]
[null,"2.","Przedział punktowy"]
[null," "," - wartość minimalna","pkt.",0,{"$f":"E168","v":0},0]
[null," "," - wartość maksymalna","pkt.",10,10,10]
[null,"3.","Wartość wskaźnika","liczba",{"$f":"IF(ISNUMBER(E64),E64,\"\")","v":2},{"$f":"IF(ISNUMBER(F64),F64,\"\")","v":2},{"$f":"IF(ISNUMBER(G64),G64,\"\")","v":2}]
[null,"4.","Ilość punktów","pkt.",{"$f":"IF(ISNUMBER(E64),IF(E170<E165,E168,IF(E170>E166,E169,IF(AND(E170<=E166,E170>=E165),IF(ISNUMBER(E170),ROUND(FORECAST(E170,E168:E169,E165:E166),0),\"\")))),\"\")","v":10},{"$f":"IF(ISNUMBER(F64),IF(F170<F165,F168,IF(F170>F166,F169,IF(AND(F170<=F166,F170>=F165),IF(ISNUMBER(F170),ROUND(FORECAST(F170,F168:F169,F165:F166),0),\"\")))),\"\")","v":10},{"$f":"IF(ISNUMBER(G64),IF(G170<G165,G168,IF(G170>G166,G169,IF(AND(G170<=G166,G170>=G165),IF(ISNUMBER(G170),ROUND(FORECAST(G170,G168:G169,G165:G166),0),\"\")))),\"\")","v":10}]
[null,"5.","Średnia z ilości punktów","pkt.",{"$f":"IF(G171=\"\",\"brak danych\",ROUND(IF(ISNUMBER(E171),AVERAGE(E171:G171),IF(ISNUMBER(F171),AVERAGE(F171:G171),IF(ISNUMBER(G171),G171,\"bd\"))),0))","v":10}]
[null,"* W przypadku braku wydatków finansowych wskaźnik WPOD przyjmuje wartość 1,2"]
[]
[null,null,{"$f":"H64","v":"Kryterium nr 8"}]
[null,{"$f":"C64","v":"Pokrycie zadłużenia - wskaźnik pokrycia obsługi długu z przepływów pieniężnych WPOD. Formuła: (CF operacyjny + CF inwestycyjny + CF finansowy (wpływy) + saldo środków na początek okresu) / CF finansowy (wydatki)"}]
[null,"Lp.","Wyszczególnienie",{"$f":"D258","v":"Jedn./Lata"},{"$f":"E56","v":""},{"$f":"F56","v":""},{"$f":"G56","v":""}]
[null,"1.","Przepływy pieniężne netto z działalności operacyjnej",{"$f":"'Dane finansowe'!$F$16","v":0},{"$f":"IF(ISNUMBER('Dane finansowe'!F48),'Dane finansowe'!F48,\"\")","v":""},{"$f":"IF(ISNUMBER('Dane finansowe'!G48),'Dane finansowe'!G48,\"\")","v":""},{"$f":"IF(ISNUMBER('Dane finansowe'!H48),'Dane finansowe'!H48,\"\")","v":""}]
[null,"2.","Przepływy pieniężne netto z dzialałności inwestycyjnej (-)",{"$f":"'Dane finansowe'!$F$16","v":0},{"$f":"IF(ISNUMBER('Dane finansowe'!F49),'Dane finansowe'!F49,\"\")","v":""},{"$f":"IF(ISNUMBER('Dane finansowe'!G49),'Dane finansowe'!G49,\"\")","v":""},{"$f":"IF(ISNUMBER('Dane finansowe'!H49),'Dane finansowe'!H49,\"\")","v":""}]
[null,"3.","Wpływy z działalności finansowej",{"$f":"'Dane finansowe'!$F$16","v":0},{"$f":"IF(ISNUMBER('Dane finansowe'!F51),'Dane finansowe'!F51,\"\")","v":""},{"$f":"IF(ISNUMBER('Dane finansowe'!G51),'Dane finansowe'!G51,\"\")","v":""},{"$f":"IF(ISNUMBER('Dane finansowe'!H51),'Dane finansowe'!H51,\"\")","v":""}]
[null,"4.","Środki pieniężne na początek okresu",{"$f":"'Dane finansowe'!$F$16","v":0},{"$f":"IF(ISNUMBER('Dane finansowe'!F57),'Dane finansowe'!F57,\"\")","v":""},{"$f":"IF(ISNUMBER('Dane finansowe'!G57),'Dane finansowe'!G57,\"\")","v":""},{"$f":"IF(ISNUMBER('Dane finansowe'!H57),'Dane finansowe'!H57,\"\")","v":""}]
[null,"5.","Wydatki z działalności finansowej",{"$f":"'Dane finansowe'!$F$16","v":0},{"$f":"IF(ISNUMBER('Dane finansowe'!F52),'Dane finansowe'!F52,0)","v":0},{"$f":"IF(ISNUMBER('Dane finansowe'!G52),'Dane finansowe'!G52,0)","v":0},{"$f":"IF(ISNUMBER('Dane finansowe'!H52),'Dane finansowe'!H52,0)","v":0}]
[null,"6.","Wartość wskaźnika WPOD",{"$f":"'Dane finansowe'!$F$16","v":0},{"$f":"IF(AND(ISNUMBER(E178),ISNUMBER(E179),ISNUMBER(E180),ISNUMBER(E181),ISNUMBER(E182)),IF(E182=0,\"\",(E178+E179+E180+E181)/E182),\"\")","v":""},{"$f":"IF(AND(ISNUMBER(F178),ISNUMBER(F179),ISNUMBER(F180),ISNUMBER(F181),ISNUMBER(F182)),IF(F182=0,\"\",(F178+F179+F180+F181)/F182),\"\")","v":""},{"$f":"IF(AND(ISNUMBER(G178),ISNUMBER(G179),ISNUMBER(G180),ISNUMBER(G181),ISNUMBER(G182)),IF(G182=0,\"\",(G178+G179+G180+G181)/G182),\"\")","v":""}]
[]
[]
[null,null,{"$f":"H66","v":"Kryterium nr 9.1"}]
[null,{"$f":"C66","v":"Wskaźnik rotacji zapasów"},null,null,null,null,null,null,{"$f":"B187","v":"Wskaźnik rotacji zapasów"}]
[null,"Lp.","Wyszczególnienie","Jedn./Lata",{"$f":"E56","v":""},{"$f":"F56","v":""},{"$f":"G56","v":""},null,"Wyszczególnienie",{"$f":"E56","v":""},{"$f":"F56","v":""},{"$f":"G56","v":""}]
[null,"1.","Przedział wartości wskaźnika",null,null,null,null,null,"Przychody",{"$f":"'Dane finansowe'!F19","v":0},{"$f":"'Dane finansowe'!G19","v":0},{"$f":"'Dane finansowe'!H19","v":0}]
[null," "," - wartość minimalna","dni",15,{"$f":"E190","v":15},15,null,"Zapasy",{"$f":"'Dane finansowe'!F31","v":0},{"$f":"'Dane finansowe'!G31","v":0},{"$f":"'Dane finansowe'!H31","v":0}]
[null," "," - wartość maksymalna","dni",30,30,30,null,"Wskaźnik (krotność)",{"$f":"IF(J190=0,\"\",J189/J190)","v":""},{"$f":"IF(K190=0,\"\",K189/K190)","v":""},{"$f":"IF(L190=0,\"\",L189/L190)","v":""}]
[null,"2.","Przedział punktowy"]
[null," "," - wartość minimalna","pkt.",10,{"$f":"E193","v":10},10]
[null," "," - wartość maksymalna","pkt.",0,0,0]
[null,"3.","Wartość wskaźnika","liczba",{"$f":"IF(ISNUMBER(E66),E66,\"\")","v":""},{"$f":"IF(ISNUMBER(F66),F66,\"\")","v":""},{"$f":"IF(ISNUMBER(G66),G66,\"\")","v":""}]
[null,"4.","Ilość punktów","pkt.",{"$f":"IF(ISNUMBER(E66),IF(E195<E190,E193,IF(E195>E191,E194,IF(AND(E195<=E191,E195>=E190),IF(ISNUMBER(E195),ROUND(FORECAST(E195,E193:E194,E190:E191),0),\"\")))),\"\")","v":""},{"$f":"IF(ISNUMBER(F66),IF(F195<F190,F193,IF(F195>F191,F194,IF(AND(F195<=F191,F195>=F190),IF(ISNUMBER(F195),ROUND(FORECAST(F195,F193:F194,F190:F191),0),\"\")))),\"\")","v":""},{"$f":"IF(ISNUMBER(G66),IF(G195<G190,G193,IF(G195>G191,G194,IF(AND(G195<=G191,G195>=G190),IF(ISNUMBER(G195),ROUND(FORECAST(G195,G193:G194,G190:G191),0),\"\")))),\"\")","v":""}]
[null,"5.","Średnia z ilości punktów","pkt.",{"$f":"IF(G196=\"\",\"brak danych\",ROUND(IF(ISNUMBER(E196),AVERAGE(E196:G196),IF(ISNUMBER(F196),AVERAGE(F196:G196),IF(ISNUMBER(G196),G196,\"bd\"))),0))","v":"brak danych"}]
[]
[]
[null,null,{"$f":"H67","v":"Kryterium nr 9.2"}]
[null,{"$f":"C67","v":"Wskaźnik rotacji należności"},null,null,null,null,null,null,{"$f":"B201","v":"Wskaźnik rotacji należności"}]
[null,"Lp.","Wyszczególnienie","Jedn./Lata",{"$f":"E56","v":""},{"$f":"F56","v":""},{"$f":"G56","v":""},null,"Wyszczególnienie",{"$f":"E56","v":""},{"$f":"F56","v":""},{"$f":"G56","v":""}]
[null,"1.","Przedział wartości wskaźnika",null,null,null,null,null,"Przychody",{"$f":"'Dane finansowe'!F19","v":0},{"$f":"'Dane finansowe'!G19","v":0},{"$f":"'Dane finansowe'!H19","v":0}]
[null," "," - wartość minimalna","dni",30,{"$f":"E204","v":30},30,null,"Należności",{"$f":"'Dane finansowe'!F32","v":0},{"$f":"'Dane finansowe'!G32","v":0},{"$f":"'Dane finansowe'!H32","v":0}]
[null," "," - wartość maksymalna","dni",90,90,90,null,"Wskaźnik (krotność)",{"$f":"IF(J204=0,\"\",J203/J204)","v":""},{"$f":"IF(K204=0,\"\",K203/K204)","v":""},{"$f":"IF(L204=0,\"\",L203/L204)","v":""}]
[null,"2.","Przedział punktowy"]
[null," "," - wartość minimalna","pkt.",10,{"$f":"E207","v":10},10]
[null," "," - wartość maksymalna","pkt.",0,0,0]
[null,"3.","Wartość wskaźnika","liczba",{"$f":"IF(ISNUMBER(E67),E67,\"\")","v":""},{"$f":"IF(ISNUMBER(F67),F67,\"\")","v":""},{"$f":"IF(ISNUMBER(G67),G67,\"\")","v":""}]
[null,"4.","Ilość punktów","pkt.",{"$f":"IF(ISNUMBER(E67),IF(E209<E204,E207,IF(E209>E205,E208,IF(AND(E209<=E205,E209>=E204),IF(ISNUMBER(E209),ROUND(FORECAST(E209,E207:E208,E204:E205),0),\"\")))),\"\")","v":""},{"$f":"IF(ISNUMBER(F67),IF(F209<F204,F207,IF(F209>F205,F208,IF(AND(F209<=F205,F209>=F204),IF(ISNUMBER(F209),ROUND(FORECAST(F209,F207:F208,F204:F205),0),\"\")))),\"\")","v":""},{"$f":"IF(ISNUMBER(G67),IF(G209<G204,G207,IF(G209>G205,G208,IF(AND(G209<=G205,G209>=G204),IF(ISNUMBER(G209),ROUND(FORECAST(G209,G207:G208,G204:G205),0),\"\")))),\"\")","v":""}]
[null,"5.","Średnia z ilości punktów","pkt.",{"$f":"IF(G210=\"\",\"brak danych\",ROUND(IF(ISNUMBER(E210),AVERAGE(E210:G210),IF(ISNUMBER(F210),AVERAGE(F210:G210),IF(ISNUMBER(G210),G210,\"bd\"))),0))","v":"brak danych"}]
[]
[]
[null,null,{"$f":"H68","v":"Kryterium nr 9.3"}]
[null,{"$f":"C68","v":"Wskaźnik rotacji zobowiązań krótkoterminowych"},null,null,null,null,null,null,{"$f":"B215","v":"Wskaźnik rotacji zobowiązań krótkoterminowych"}]
[null,"Lp.","Wyszczególnienie","Jedn./Lata",{"$f":"E56","v":""},{"$f":"F56","v":""},{"$f":"G56","v":""},null,"Wyszczególnienie",{"$f":"E56","v":""},{"$f":"F56","v":""},{"$f":"G56","v":""}]
[null,"1.","Przedział wartości wskaźnika",null,null,null,null,null,"Przychody",{"$f":"'Dane finansowe'!F19","v":0},{"$f":"'Dane finansowe'!G19","v":0},{"$f":"'Dane finansowe'!H19","v":0}]
[null," "," - wartość minimalna","dni",30,{"$f":"E218","v":30},30,null,"Zobowiązania",{"$f":"'Dane finansowe'!F43","v":0},{"$f":"'Dane finansowe'!G43","v":0},{"$f":"'Dane finansowe'!H43","v":0}]
[null," "," - wartość maksymalna","dni",90,90,90,null,"Wskaźnik (krotność)",{"$f":"IF(J218=0,\"\",J217/J218)","v":""},{"$f":"IF(K218=0,\"\",K217/K218)","v":""},{"$f":"IF(L218=0,\"\",L217/L218)","v":""}]
[null,"2.","Przedział punktowy"]
[null," "," - wartość minimalna","pkt.",10,{"$f":"E221","v":10},10]
[null," "," - wartość maksymalna","pkt.",0,0,0]
[null,"3.","Wartość wskaźnika","liczba",{"$f":"IF(ISNUMBER(E68),E68,\"\")","v":""},{"$f":"IF(ISNUMBER(F68),F68,\"\")","v":""},{"$f":"IF(ISNUMBER(G68),G68,\"\")","v":""}]
[null,"4.","Ilość punktów","pkt.",{"$f":"IF(ISNUMBER(E68),IF(E223<E218,E221,IF(E223>E219,E222,IF(AND(E223<=E219,E223>=E218),IF(ISNUMBER(E223),ROUND(FORECAST(E223,E221:E222,E218:E219),0),\"\")))),\"\")","v":""},{"$f":"IF(ISNUMBER(F68),IF(F223<F218,F221,IF(F223>F219,F222,IF(AND(F223<=F219,F223>=F218),IF(ISNUMBER(F223),ROUND(FORECAST(F223,F221:F222,F218:F219),0),\"\")))),\"\")","v":""},{"$f":"IF(ISNUMBER(G68),IF(G223<G218,G221,IF(G223>G219,G222,IF(AND(G223<=G219,G223>=G218),IF(ISNUMBER(G223),ROUND(FORECAST(G223,G221:G222,G218:G219),0),\"\")))),\"\")","v":""}]
[null,"5.","Średnia z ilości punktów","pkt.",{"$f":"IF(G224=\"\",\"brak danych\",ROUND(IF(ISNUMBER(E224),AVERAGE(E224:G224),IF(ISNUMBER(F224),AVERAGE(F224:G224),IF(ISNUMBER(G224),G224,\"bd\"))),0))","v":"brak danych"}]
[]
[]
[null,null,{"$f":"H69","v":"Kryterium nr 10"}]
[null,{"$f":"C69","v":"Pokrycie aktywów stałych: kapitał własny / aktywa trwałe"}]
[null,"Lp.","Wyszczególnienie","Jedn./Lata",{"$f":"E56","v":""},{"$f":"F56","v":""},{"$f":"G56","v":""}]
[null,"1.","Przedział wartości wskaźnika"]
[null," "," - wartość minimalna","liczba",0,{"$f":"E232","v":0},0]
[null," "," - wartość maksymalna","liczba",2,2,2]
[null,"2.","Przedział punktowy"]
[null," "," - wartość minimalna","pkt.",0,{"$f":"E235","v":0},0]
[null," "," - wartość maksymalna","pkt.",5,5,5]
[null,"3.","Wartość wskaźnika","liczba",{"$f":"IF(ISNUMBER(E69),E69,\"\")","v":""},{"$f":"IF(ISNUMBER(F69),F69,\"\")","v":""},{"$f":"IF(ISNUMBER(G69),G69,\"\")","v":""}]
[null,"4.","Ilość punktów","pkt.",{"$f":"IF(ISNUMBER(E69),IF(E237<E232,E235,IF(E237>E233,E236,IF(AND(E237<=E233,E237>=E232),IF(ISNUMBER(E237),ROUND(FORECAST(E237,E235:E236,E232:E233),0),\"\")))),\"\")","v":""},{"$f":"IF(ISNUMBER(F69),IF(F237<F232,F235,IF(F237>F233,F236,IF(AND(F237<=F233,F237>=F232),IF(ISNUMBER(F237),ROUND(FORECAST(F237,F235:F236,F232:F233),0),\"\")))),\"\")","v":""},{"$f":"IF(ISNUMBER(G69),IF(G237<G232,G235,IF(G237>G233,G236,IF(AND(G237<=G233,G237>=G232),IF(ISNUMBER(G237),ROUND(FORECAST(G237,G235:G236,G232:G233),0),\"\")))),\"\")","v":""}]
[null,"5.","Średnia z ilości punktów","pkt.",{"$f":"IF(G238=\"\",\"brak danych\",ROUND(IF(ISNUMBER(E238),AVERAGE(E238:G238),IF(ISNUMBER(F238),AVERAGE(F238:G238),IF(ISNUMBER(G238),G238,\"bd\"))),0))","v":"brak danych"}]
[]
[]
[null,null,{"$f":"H71","v":"Kryterium nr 12"}]
[null,{"$f":"C71","v":"Analiza dyskryminacyjna - model prof. E. Mączyńskiej"}]
[null,"Lp.","Wyszczególnienie","Jedn./Lata",{"$f":"E56","v":""},{"$f":"F56","v":""},{"$f":"G56","v":""}]
[null,"1.","Przedział wartości wskaźnika"]
[null," "," - wartość minimalna","liczba",0,{"$f":"E246","v":0},0]
[null," "," - wartość maksymalna","liczba",2,2,2]
[null,"2.","Przedział punktowy"]
[null," "," - wartość minimalna","pkt.",0,{"$f":"E249","v":0},0]
[null," "," - wartość maksymalna","pkt.",10,10,10]
[null,"3.","Wartość wskaźnika","liczba",{"$f":"IF(ISNUMBER(E71),E71,\"\")","v":""},{"$f":"IF(ISNUMBER(F71),F71,\"\")","v":""},{"$f":"IF(ISNUMBER(G71),G71,\"\")","v":""}]
[null,"4.","Ilość punktów","pkt.",{"$f":"IF(ISNUMBER(E71),IF(E251<E246,E249,IF(E251>E247,E250,IF(AND(E251<=E247,E251>=E246),IF(ISNUMBER(E251),ROUND(FORECAST(E251,E249:E250,E246:E247),0),\"\")))),\"\")","v":""},{"$f":"IF(ISNUMBER(F71),IF(F251<F246,F249,IF(F251>F247,F250,IF(AND(F251<=F247,F251>=F246),IF(ISNUMBER(F251),ROUND(FORECAST(F251,F249:F250,F246:F247),0),\"\")))),\"\")","v":""},{"$f":"IF(ISNUMBER(G71),IF(G251<G246,G249,IF(G251>G247,G250,IF(AND(G251<=G247,G251>=G246),IF(ISNUMBER(G251),ROUND(FORECAST(G251,G249:G250,G246:G247),0),\"\")))),\"\")","v":""}]
[null,"5.","Średnia z ilości punktów","pkt.",{"$f":"IF(G252=\"\",\"brak danych\",ROUND(IF(ISNUMBER(E252),AVERAGE(E252:G252),IF(ISNUMBER(F252),AVERAGE(F252:G252),IF(ISNUMBER(G252),G252,\"bd\"))),0))","v":"brak danych"}]
[]
[]
[null,null,{"$f":"H71","v":"Kryterium nr 12"}]
[null,{"$f":"C71","v":"Analiza dyskryminacyjna - model prof. E. Mączyńskiej"}]
[null,{"$f":"B56","v":"Lp."},"Wyszczególnienie","Jedn./Lata",{"$f":"E56","v":""},{"$f":"F56","v":""},{"$f":"G56","v":""}]
[null,"1.","X1 = (zysk netto+amortyzacja) / zobowiązania ogółem","liczba",{"$f":"IF('Dane finansowe'!F40=0,0,('Dane finansowe'!F26+'Dane finansowe'!F21)/'Dane finansowe'!F40)","v":0},{"$f":"IF('Dane finansowe'!G40=0,0,('Dane finansowe'!G26+'Dane finansowe'!G21)/'Dane finansowe'!G40)","v":0},{"$f":"IF('Dane finansowe'!H40=0,0,('Dane finansowe'!H26+'Dane finansowe'!H21)/'Dane finansowe'!H40)","v":0},null,"Wartość graniczna funkcji wynosi 0."]
[null,"2.","X2 = aktywa ogółem / zobowiązania ogółem","liczba",{"$f":"IF('Dane finansowe'!F40=0,0,'Dane finansowe'!F36/'Dane finansowe'!F40)","v":0},{"$f":"IF('Dane finansowe'!G40=0,0,'Dane finansowe'!G36/'Dane finansowe'!G40)","v":0},{"$f":"IF('Dane finansowe'!H40=0,0,'Dane finansowe'!H36/'Dane finansowe'!H40)","v":0},null,"W < 0 – przedsiębiorstwo bardzo słabe, duże zagrożenie upadłością,"]
[null,"3.","X3 = EBIT / aktywa ogółem","liczba",{"$f":"IF('Dane finansowe'!F36=0,0,'Dane finansowe'!F23/'Dane finansowe'!F36)","v":0},{"$f":"IF('Dane finansowe'!G36=0,0,'Dane finansowe'!G23/'Dane finansowe'!G36)","v":0},{"$f":"IF('Dane finansowe'!H36=0,0,'Dane finansowe'!H23/'Dane finansowe'!H36)","v":0},null,"0 < W < 1 – przedsiębiorstwo słabe, obarczone ryzykiem upadłości,"]
[null,"4.","X4 = EBIT / przychody ze sprzedaży ogółem","liczba",{"$f":"IF(E178=\"\",\"\",IF(E178=0,0,'Dane finansowe'!F23/'Dane finansowe'!F19))","v":""},{"$f":"IF(F178=\"\",\"\",IF(F178=0,0,'Dane finansowe'!G23/'Dane finansowe'!G19))","v":""},{"$f":"IF(G178=\"\",\"\",IF(G178=0,0,'Dane finansowe'!H23/'Dane finansowe'!H19))","v":""},null,"1 < W < 2 – przedsiębiorstwo dobre,"]
[null,"5.","X5 = zapasy / przychody ze sprzedaży ogółem","liczba",{"$f":"IF('Dane finansowe'!F19=0,0,'Dane finansowe'!F31/'Dane finansowe'!F19)","v":0},{"$f":"IF('Dane finansowe'!G19=0,0,'Dane finansowe'!G31/'Dane finansowe'!G19)","v":0},{"$f":"IF('Dane finansowe'!H19=0,0,'Dane finansowe'!H31/'Dane finansowe'!H19)","v":0},null,"      W > 2 – przedsiębiorstwo bardzo dobre."]
[null,"6.","X6 = przychody ze sprzedaży ogółem / aktywa ogółem","liczba",{"$f":"IF('Dane finansowe'!F36=0,0,'Dane finansowe'!F19/'Dane finansowe'!F36)","v":0},{"$f":"IF('Dane finansowe'!G36=0,0,'Dane finansowe'!G19/'Dane finansowe'!G36)","v":0},{"$f":"IF('Dane finansowe'!H36=0,0,'Dane finansowe'!H19/'Dane finansowe'!H36)","v":0}]
[null,"7.","Wartość funkcji dyskryminacyjnej W - model prof. E. Mączyńskiej","liczba",{"$f":"IF(E262=\"\",\"brak danych\",(1.5*E259)+(0.08*E260)+(10*E261)+(5*E262)+(0.3*E263)+(0.1*E264))","v":"brak danych"},{"$f":"IF(F262=\"\",\"brak danych\",(1.5*F259)+(0.08*F260)+(10*F261)+(5*F262)+(0.3*F263)+(0.1*F264))","v":"brak danych"},{"$f":"IF(G262=\"\",\"brak danych\",(1.5*G259)+(0.08*G260)+(10*G261)+(5*G262)+(0.3*G263)+(0.1*G264))","v":"brak danych"}]